bitfinex/quotes_BTCUSD_20230114
["timestamp","ask_amount","ask_price","bid_price","bid_amount"]
[1673683265082,2.04151468,20910.0,20909.0,0.00855693]
[1673683265337,2.568219,20910.0,20909.0,0.00855693]
[1673683265603,2.6160805,20910.0,20909.0,0.00855693]
[1673683266110,3.04422763,20910.0,20909.0,0.00855693]
[1673683266631,3.04422763,20910.0,20909.0,0.02455693]
[1673683266867,3.04422763,20910.0,20909.0,0.00855693]
[1673683267116,2.73668863,20910.0,20909.0,0.00855693]
[1673683267369,2.87368863,20910.0,20909.0,0.01055693]
[1673683267873,3.18122763,20910.0,20909.0,0.01055693]
[1673683270116,2.7530805,20910.0,20909.0,0.01055693]
[1673683270386,2.67038022,20910.0,20909.0,0.01055693]
[1673683270855,2.97791922,20910.0,20909.0,0.01055693]
[1673683271376,3.40606635,20910.0,20909.0,0.01055693]
[1673683271637,2.67038022,20910.0,20909.0,0.01055693]
[1673683272396,0.1,20909.0,20906.0,0.00982144]
[1673683272645,0.8957,20907.0,20905.0,0.01171235]
[1673683272914,0.1,20905.0,20904.0,0.01176082]
[1673683273172,1.41930607,20905.0,20904.0,0.01176082]
[1673683273425,1.41930607,20905.0,20902.0,0.01228817]
[1673683273426,0.1,20904.0,20902.0,0.01228817]
[1673683273675,2.74550857,20904.0,20902.0,0.01228817]
[1673683273914,0.1,20902.0,20901.0,0.01228817]
[1673683274180,2.731069,20902.0,20901.0,0.01228817]
[1673683274398,3.88959569,20902.0,20901.0,0.01228817]
[1673683274635,3.45184063,20902.0,20901.0,0.01228817]
[1673683274885,3.47118604,20902.0,20901.0,0.01228817]
[1673683275385,3.47118604,20902.0,20900.0,0.07031698]
[1673683275386,0.12427767,20901.0,20900.0,0.07031698]
[1673683275622,1.80902367,20901.0,20900.0,0.07031698]
[1673683275887,1.99919362,20901.0,20900.0,0.07031698]
[1673683276138,1.85082435,20901.0,20900.0,0.07031698]
[1673683276613,1.98582435,20901.0,20900.0,0.07031698]
[1673683277598,1.93796285,20901.0,20900.0,0.07031698]
[1673683278586,1.29696285,20901.0,20900.0,0.07031698]
[1673683278825,1.29666285,20901.0,20900.0,0.07031698]
[1673683279065,1.29765675,20901.0,20900.0,0.07031698]
[1673683279549,0.89765675,20901.0,20900.0,0.07031698]
[1673683281105,1.32261364,20901.0,20900.0,0.07031698]
[1673683281701,1.19441364,20901.0,20900.0,0.07031698]
[1673683281931,0.88591364,20901.0,20900.0,0.07031698]
[1673683282162,0.613446,20901.0,20900.0,0.08723582]
[1673683282416,0.613446,20901.0,20900.0,0.06829]
[1673683282695,0.613446,20901.0,20899.0,0.15698456]
[1673683284392,0.613446,20901.0,20899.0,0.01265501]
[1673683284703,0.135,20901.0,20900.0,0.47720169]
[1673683284995,0.59854394,20905.0,20900.0,0.89837569]
[1673683285215,0.59854394,20905.0,20901.0,0.88324564]
[1673683285216,0.478364,20905.0,20901.0,0.88324564]
[1673683285480,0.478364,20905.0,20902.0,0.98906564]
[1673683285692,0.478364,20905.0,20903.0,0.215295]
[1673683285927,0.478364,20905.0,20904.0,0.321106]
[1673683286170,0.484364,20905.0,20904.0,0.321106]
[1673683286446,0.2821965,20909.0,20904.0,0.98903364]
[1673683286733,0.00724536,20909.0,20905.0,0.98320064]
[1673683286976,0.00724536,20909.0,20906.0,0.98899664]
[1673683287221,0.00724536,20909.0,20907.0,0.69245169]
[1673683287506,0.16078516,20909.0,20908.0,0.79823869]
[1673683287695,0.00724536,20909.0,20908.0,0.79823869]
[1673683287935,0.00724536,20909.0,20908.0,0.97197935]
[1673683288185,0.00724536,20909.0,20908.0,0.65094235]
[1673683288686,0.31724536,20909.0,20908.0,0.65094235]
[1673683288933,0.01724536,20909.0,20908.0,0.65094235]
[1673683289171,0.08524536,20909.0,20908.0,0.97711635]
[1673683290934,0.08524536,20909.0,20908.0,0.65594235]
[1673683291170,0.08524536,20909.0,20908.0,0.97711635]
[1673683291663,0.08524536,20909.0,20908.0,0.65594235]
[1673683293389,0.08524536,20909.0,20908.0,0.97711635]
[1673683293627,0.08512759,20909.0,20908.0,0.97711635]
[1673683294641,0.08499648,20909.0,20908.0,0.97711635]
[1673683295102,0.08499648,20909.0,20908.0,0.65594235]
[1673683296357,0.08499648,20909.0,20908.0,0.97711635]
[1673683299181,0.08499648,20909.0,20908.0,0.65594235]
[1673683300149,0.08499648,20909.0,20908.0,0.97711635]
[1673683300687,0.08499648,20909.0,20908.0,0.65594235]
[1673683300916,0.08499648,20909.0,20908.0,0.6560185]
[1673683301644,0.08499648,20909.0,20908.0,0.65594235]
[1673683303558,0.38499648,20909.0,20908.0,0.65594235]
[1673683305536,0.82467245,20909.0,20908.0,0.005]
[1673683305778,1.12581888,20909.0,20908.0,0.005]
[1673683306492,1.22581888,20909.0,20908.0,0.005]
[1673683307206,1.12581888,20909.0,20908.0,0.005]
[1673683307470,1.22581888,20909.0,20908.0,0.005]
[1673683308458,1.09125848,20909.0,20908.0,0.005]
[1673683308653,1.23434568,20909.0,20908.0,0.005]
[1673683309502,1.24284568,20909.0,20908.0,0.005]
[1673683312349,1.06484568,20909.0,20905.0,0.19886809]
[1673683312570,0.1283,20908.0,20906.0,0.14280844]
[1673683312793,0.478308,20907.0,20906.0,0.14280844]
[1673683313062,0.778308,20907.0,20906.0,0.14280844]
[1673683314588,0.885308,20907.0,20906.0,0.14280844]
[1673683315017,0.885308,20907.0,20905.0,0.47720169]
[1673683315195,0.885308,20907.0,20905.0,0.64017023]
[1673683315663,0.3,20906.0,20905.0,0.64017023]
[1673683315895,0.585308,20907.0,20905.0,0.64017023]
[1673683316305,0.528,20906.0,20901.0,0.01280679]
[1673683316516,1.006338,20906.0,20905.0,0.001]
[1673683316952,1.12774566,20906.0,20905.0,0.00090101]
[1673683317190,0.1,20905.0,20901.0,0.01280679]
[1673683317399,0.1,20905.0,20901.0,0.16893137]
[1673683317400,1.26967757,20904.0,20901.0,0.16893137]
[1673683317618,0.3,20903.0,20902.0,0.15293396]
[1673683317762,0.7784,20903.0,20902.0,0.15293396]
[1673683319416,0.7784,20903.0,20901.0,0.01661679]
[1673683319651,0.43468563,20902.0,20901.0,0.01261679]
[1673683319884,0.67198385,20902.0,20901.0,0.01261679]
[1673683320122,0.60221385,20902.0,20901.0,0.01261679]
[1673683320371,0.97213685,20902.0,20901.0,0.01661679]
[1673683320636,0.97213685,20902.0,20901.0,0.15953781]
[1673683320637,0.956846,20902.0,20901.0,0.15953781]
[1673683320888,0.956846,20902.0,20901.0,0.20342669]
[1673683321117,0.956846,20902.0,20901.0,0.19942669]
[1673683322046,1.091846,20902.0,20901.0,0.19942669]
[1673683322266,1.10935594,20902.0,20901.0,0.00761679]
[1673683322492,1.40935594,20902.0,20901.0,0.00761679]
[1673683322984,1.83037194,20902.0,20901.0,0.00761679]
[1673683323250,2.06697194,20902.0,20901.0,0.00761679]
[1673683323520,2.38639596,20902.0,20901.0,0.00761679]
[1673683323727,2.42274307,20902.0,20901.0,0.00761679]
[1673683323958,2.56505152,20902.0,20901.0,0.00761679]
[1673683324184,3.03915369,20902.0,20901.0,0.00761679]
[1673683324665,2.68342279,20902.0,20901.0,0.00761679]
[1673683324888,2.89694581,20902.0,20901.0,0.00761679]
[1673683325131,3.03921403,20902.0,20901.0,0.00761679]
[1673683326117,2.56511186,20902.0,20901.0,0.00761679]
[1673683326344,1.93197194,20902.0,20901.0,0.00761679]
[1673683326587,2.06897194,20902.0,20901.0,0.00761679]
[1673683326834,1.93197194,20902.0,20901.0,0.00761679]
[1673683327086,1.37765379,20902.0,20901.0,0.00761679]
[1673683327333,1.24955379,20902.0,20901.0,0.00761679]
[1673683327808,1.24955379,20902.0,20901.0,0.00606284]
[1673683328041,1.34955379,20902.0,20901.0,0.00606284]
[1673683328542,1.64955379,20902.0,20901.0,0.00606284]
[1673683330934,1.54955379,20902.0,20901.0,0.00606284]
[1673683331661,1.658746,20902.0,20901.0,0.00606284]
[1673683332124,1.758746,20902.0,20901.0,0.00606284]
[1673683333103,1.77403875,20902.0,20901.0,0.00606284]
[1673683334053,1.758746,20902.0,20901.0,0.00606284]
[1673683334501,2.29390853,20902.0,20901.0,0.00606284]
[1673683335677,2.43610079,20902.0,20901.0,0.00606284]
[1673683336157,2.43610079,20902.0,20899.0,0.01265501]
[1673683336158,0.1,20901.0,20899.0,0.01265501]
[1673683336396,2.10172994,20900.0,20899.0,0.01265501]
[1673683336626,2.41022994,20900.0,20899.0,0.01265501]
[1673683338259,2.54622994,20900.0,20899.0,0.01265501]
[1673683339146,2.67120992,20900.0,20899.0,0.01265501]
[1673683339393,3.14531209,20900.0,20899.0,0.01265501]
[1673683339926,3.3702772,20900.0,20899.0,0.01265501]
[1673683340189,2.89617503,20900.0,20899.0,0.01265501]
[1673683340682,2.47154845,20900.0,20899.0,0.01265501]
[1673683340931,2.17154845,20900.0,20899.0,0.01265501]
[1673683341428,1.94658334,20900.0,20899.0,0.01265501]
[1673683342681,2.24658334,20900.0,20899.0,0.01265501]
[1673683343451,2.14658334,20900.0,20899.0,0.01265501]
[1673683343708,2.49658334,20900.0,20899.0,0.01265501]
[1673683346168,2.49658334,20900.0,20899.0,0.01150051]
[1673683346169,2.48298398,20900.0,20899.0,0.01150051]
[1673683347155,2.53084711,20900.0,20899.0,0.01150051]
[1673683347395,2.54921502,20900.0,20899.0,0.01150051]
[1673683347655,2.53084711,20900.0,20899.0,0.01150051]
[1673683348416,2.54724509,20900.0,20899.0,0.01150051]
[1673683349156,2.49938196,20900.0,20899.0,0.01150051]
[1673683349402,2.54724509,20900.0,20899.0,0.01150051]
[1673683349909,2.53084711,20900.0,20899.0,0.01150051]
[1673683350149,2.54674868,20900.0,20899.0,0.01150051]
[1673683351143,2.4217687,20900.0,20899.0,0.01150051]
[1673683352941,2.39736713,20900.0,20899.0,0.34028646]
[1673683353189,1.442936,20900.0,20899.0,0.31189366]
[1673683353952,0.486,20900.0,20899.0,1.13866215]
[1673683354202,0.486,20900.0,20899.0,1.12486901]
[1673683354463,0.486,20900.0,20899.0,0.9479362]
[1673683354708,0.486,20900.0,20899.0,1.10567948]
[1673683354709,0.136,20900.0,20899.0,1.10567948]
[1673683355247,0.35,20901.0,20899.0,0.9479362]
[1673683355493,0.35,20901.0,20900.0,0.69254769]
[1673683356524,0.35,20901.0,20900.0,0.88721346]
[1673683356767,0.35,20902.0,20900.0,0.69254769]
[1673683357013,0.35,20902.0,20901.0,0.79834369]
[1673683357756,0.35,20902.0,20901.0,0.47720169]
[1673683357997,0.35,20902.0,20900.0,0.14801643]
[1673683357998,0.36620033,20902.0,20900.0,0.14801643]
[1673683358246,0.36620033,20902.0,20901.0,0.007]
[1673683358247,1.1167389,20902.0,20901.0,0.007]
[1673683358501,1.23962333,20902.0,20901.0,0.007]
[1673683358740,0.88962333,20902.0,20901.0,0.007]
[1673683359261,0.79462333,20902.0,20900.0,0.47720169]
[1673683359524,0.3,20901.0,20900.0,0.48020169]
[1673683359773,1.128446,20901.0,20900.0,0.47720169]
[1673683360516,1.128446,20901.0,20900.0,0.48020169]
[1673683360756,1.128446,20901.0,20900.0,0.47720169]
[1673683361012,1.150446,20901.0,20900.0,0.48020169]
[1673683365115,0.850446,20901.0,20900.0,0.48020169]
[1673683366125,1.150446,20901.0,20900.0,0.48020169]
[1673683367089,1.3064582,20901.0,20900.0,0.003]
[1673683367589,1.51998122,20901.0,20900.0,0.003]
[1673683368102,1.7913115,20901.0,20900.0,0.003]
[1673683368352,1.4350629,20901.0,20900.0,0.003]
[1673683368605,1.74365496,20901.0,20900.0,0.003]
[1673683368855,1.4503716,20901.0,20900.0,0.003]
[1673683369353,1.7693115,20901.0,20899.0,0.01150051]
[1673683369594,1.9319119,20901.0,20900.0,0.005]
[1673683369845,1.59752591,20901.0,20900.0,0.005]
[1673683370090,0.18334974,20900.0,20899.0,0.01150051]
[1673683370342,1.42536565,20900.0,20899.0,0.01150051]
[1673683370610,1.43053621,20900.0,20899.0,0.01150051]
[1673683370863,1.78053621,20900.0,20899.0,0.01150051]
[1673683371117,1.63800339,20900.0,20899.0,0.01150051]
[1673683371354,1.97400339,20900.0,20899.0,0.01550051]
[1673683374317,1.8314563,20900.0,20899.0,0.01550051]
[1673683374562,1.97402691,20900.0,20899.0,0.01550051]
[1673683374812,1.8314563,20900.0,20899.0,0.01550051]
[1673683375065,1.97402928,20900.0,20899.0,0.01550051]
[1673683375310,1.97402927,20900.0,20899.0,0.01550051]
[1673683376099,1.97403918,20900.0,20899.0,0.01550051]
[1673683376352,1.8314563,20900.0,20899.0,0.01550051]
[1673683376617,1.97407048,20900.0,20899.0,0.01550051]
[1673683378824,2.18799884,20900.0,20899.0,0.01550051]
[1673683379312,2.04538466,20900.0,20899.0,0.01550051]
[1673683379804,2.18800746,20900.0,20899.0,0.01550051]
[1673683380055,2.11823746,20900.0,20899.0,0.01550051]
[1673683380312,1.818243,20900.0,20899.0,0.01550051]
[1673683381054,1.60431464,20900.0,20899.0,0.01550051]
[1673683381556,1.4616863,20900.0,20899.0,0.01550051]
[1673683382058,1.4616863,20900.0,20899.0,0.82148815]
[1673683382302,0.486,20900.0,20899.0,0.82148815]
[1673683382566,0.486,20900.0,20899.0,0.9519362]
[1673683382824,0.136,20900.0,20899.0,0.9519362]
[1673683383071,0.136,20900.0,20899.0,1.05051363]
[1673683384811,0.486,20900.0,20899.0,1.06327077]
[1673683385322,0.486,20900.0,20899.0,0.67380677]
[1673683386318,0.486,20900.0,20899.0,0.69618529]
[1673683386564,0.486,20900.0,20899.0,1.40512434]
[1673683386807,0.49900827,20905.0,20899.0,1.54432357]
[1673683386808,0.35,20903.0,20899.0,1.54432357]
[1673683387058,0.35,20903.0,20900.0,0.88327364]
[1673683387300,0.35,20903.0,20901.0,0.79834069]
[1673683387559,0.35,20903.0,20902.0,0.79252569]
[1673683387807,0.35,20904.0,20902.0,0.79252569]
[1673683388052,0.35,20904.0,20903.0,0.79830869]
[1673683388556,0.35,20904.0,20903.0,0.47720169]
[1673683388799,0.85687603,20907.0,20903.0,0.47720169]
[1673683389057,0.01356127,20906.0,20903.0,0.66792764]
[1673683389306,0.49189527,20906.0,20903.0,0.47720169]
[1673683389561,0.49189527,20906.0,20903.0,0.72720169]
[1673683389797,0.35,20904.0,20903.0,0.72720169]
[1673683390325,0.35,20904.0,20903.0,0.90401941]
[1673683390326,0.441,20904.0,20903.0,0.90401941]
[1673683390565,0.35,20904.0,20903.0,0.89801941]
[1673683390814,0.35,20904.0,20903.0,0.90401941]
[1673683391060,0.35,20904.0,20903.0,0.89801941]
[1673683391307,0.35,20904.0,20903.0,0.90401941]
[1673683391308,0.441,20904.0,20903.0,0.90401941]
[1673683396574,0.441,20904.0,20903.0,1.22519341]
[1673683396787,0.441,20904.0,20903.0,1.05428394]
[1673683397322,0.441,20904.0,20903.0,1.23733507]
[1673683397827,0.091,20904.0,20903.0,1.23733507]
[1673683398567,0.091,20904.0,20903.0,1.19530012]
[1673683399060,0.091,20904.0,20903.0,1.22143905]
[1673683399338,0.091,20904.0,20903.0,1.05428394]
[1673683399596,0.091,20904.0,20903.0,1.2213019]
[1673683402522,0.441,20904.0,20903.0,1.2213019]
[1673683403709,0.091,20904.0,20903.0,1.2213019]
[1673683407714,0.441,20904.0,20903.0,1.2213019]
[1673683408959,0.091,20904.0,20903.0,1.2213019]
[1673683409682,0.091,20904.0,20903.0,0.9001279]
[1673683410654,0.441,20904.0,20903.0,0.9001279]
[1673683415878,0.441,20904.0,20903.0,0.73310994]
[1673683416108,0.441,20904.0,20903.0,1.41073589]
[1673683416357,0.441,20904.0,20903.0,2.41880287]
[1673683416855,0.091,20904.0,20903.0,2.41854595]
[1673683417108,0.091,20904.0,20903.0,2.13214748]
[1673683417351,0.091,20904.0,20903.0,2.26664629]
[1673683418084,0.00705104,20907.0,20904.0,0.10009022]
[1673683418338,0.00705104,20907.0,20905.0,1.17077669]
[1673683418585,0.00705104,20907.0,20906.0,0.89832469]
[1673683419070,0.00705104,20907.0,20906.0,1.05065647]
[1673683419312,0.01905104,20907.0,20906.0,1.30065647]
[1673683419555,0.00705104,20907.0,20906.0,1.30065647]
[1673683419797,0.03005104,20907.0,20906.0,1.20365647]
[1673683423322,0.03005104,20907.0,20906.0,1.2035734]
[1673683425043,0.03005104,20907.0,20906.0,1.3035734]
[1673683425291,0.03005104,20907.0,20906.0,1.15124162]
[1673683425540,0.03005104,20907.0,20906.0,1.29431067]
[1673683426039,0.03005104,20907.0,20906.0,2.13051302]
[1673683426303,0.03005104,20907.0,20906.0,2.29138102]
[1673683426544,0.03005104,20907.0,20906.0,2.13043594]
[1673683426785,0.03005104,20907.0,20906.0,1.91589401]
[1673683427104,0.03005104,20907.0,20906.0,2.27389209]
[1673683428320,0.03005104,20907.0,20906.0,1.91589401]
[1673683428563,0.03005104,20907.0,20906.0,2.13056414]
[1673683429306,0.03005104,20907.0,20906.0,1.91589401]
[1673683430064,0.03005104,20907.0,20906.0,2.27389209]
[1673683430561,0.03005104,20907.0,20906.0,1.91589401]
[1673683430811,0.03005104,20907.0,20906.0,2.27389209]
[1673683431048,0.03005104,20907.0,20906.0,1.98749362]
[1673683431288,0.03005104,20907.0,20906.0,2.28749362]
[1673683431507,0.03005104,20907.0,20906.0,1.98749362]
[1673683433233,0.03005104,20907.0,20906.0,2.28749362]
[1673683433489,0.03005104,20907.0,20906.0,1.98749362]
[1673683433960,0.03005104,20907.0,20906.0,2.28749362]
[1673683434192,0.03005104,20907.0,20906.0,1.98749362]
[1673683434429,0.03005104,20907.0,20906.0,2.28749362]
[1673683434654,0.00705104,20907.0,20906.0,2.28449362]
[1673683434901,0.01805104,20907.0,20906.0,2.35149362]
[1673683435146,0.01805104,20907.0,20906.0,2.05149362]
[1673683435391,0.01805104,20907.0,20906.0,1.99349554]
[1673683435636,0.01805104,20907.0,20906.0,2.47889834]
[1673683435879,0.01805104,20907.0,20906.0,2.12149554]
[1673683436124,0.01805104,20907.0,20906.0,8.12999554]
[1673683436376,0.01805104,20907.0,20906.0,8.43073495]
[1673683436869,0.01805104,20907.0,20906.0,6.12999554]
[1673683437137,0.01805104,20907.0,20906.0,6.55959324]
[1673683437389,0.01805104,20907.0,20906.0,6.43079259]
[1673683437648,0.01805104,20907.0,20906.0,6.85539029]
[1673683437898,0.01805104,20907.0,20906.0,6.98349029]
[1673683438143,0.01805104,20907.0,20906.0,6.55389259]
[1673683438655,0.01805104,20907.0,20906.0,7.51081285]
[1673683439160,5.104e-05,20907.0,20906.0,7.51081285]
[1673683439429,0.00699648,20909.0,20906.0,9.06312454]
[1673683439677,0.00699648,20909.0,20908.0,0.83340169]
[1673683439923,9.648e-05,20909.0,20908.0,3.18999615]
[1673683440170,0.00705104,20911.0,20909.0,0.1]
[1673683440419,0.00705104,20911.0,20910.0,3.04974211]
[1673683440658,0.00705104,20911.0,20910.0,3.34971303]
[1673683440909,0.00705104,20911.0,20910.0,2.99268128]
[1673683441156,0.00705104,20911.0,20910.0,3.24256406]
[1673683441928,0.00705104,20911.0,20910.0,3.11446406]
[1673683442170,0.00705104,20911.0,20910.0,3.25346406]
[1673683443177,0.00705104,20911.0,20910.0,2.95268669]
[1673683443657,0.00705104,20911.0,20910.0,3.38112479]
[1673683444163,0.00705104,20911.0,20910.0,2.95268669]
[1673683444930,0.18416661,20911.0,20910.0,3.43123136]
[1673683445175,0.00705104,20911.0,20910.0,3.18428475]
[1673683445431,0.00705104,20911.0,20910.0,3.01564325]
[1673683445689,0.00705104,20911.0,20910.0,2.5437318]
[1673683445942,0.00705104,20911.0,20910.0,1.70865925]
[1673683446458,0.00705104,20911.0,20910.0,1.56965925]
[1673683446696,0.00805104,20911.0,20910.0,1.70865925]
[1673683447673,0.00705104,20911.0,20910.0,1.56965925]
[1673683447911,0.00805104,20911.0,20910.0,1.70865925]
[1673683449157,0.00805104,20911.0,20910.0,1.23041925]
[1673683452953,0.00805104,20911.0,20910.0,1.70865925]
[1673683453445,0.00805104,20911.0,20910.0,1.85139436]
[1673683455153,0.00805104,20911.0,20910.0,2.09602132]
[1673683455404,0.00805104,20911.0,20910.0,2.23874533]
[1673683455641,0.00805104,20911.0,20910.0,1.95328621]
[1673683455882,0.00805104,20911.0,20910.0,2.23874533]
[1673683456410,0.00805104,20911.0,20910.0,2.09622777]
[1673683457148,0.00805104,20911.0,20910.0,1.88213033]
[1673683457394,0.80486782,20911.0,20910.0,0.389]
[1673683457656,0.97775225,20911.0,20910.0,0.389]
[1673683458157,0.97675225,20911.0,20910.0,0.389]
[1673683458398,0.97875225,20911.0,20910.0,0.389]
[1673683458644,0.97675225,20911.0,20910.0,0.25]
[1673683458895,0.99775225,20911.0,20910.0,0.252]
[1673683459399,0.51953525,20911.0,20910.0,0.72920169]
[1673683459883,0.39253525,20911.0,20910.0,0.72920169]
[1673683460890,0.37153525,20911.0,20910.0,0.72720169]
[1673683461162,0.37153525,20911.0,20910.0,0.72865256]
[1673683461163,0.35705104,20911.0,20910.0,0.72865256]
[1673683461407,0.37805104,20911.0,20910.0,0.72920169]
[1673683462903,0.02805104,20911.0,20910.0,0.72920169]
[1673683463894,0.37805104,20911.0,20910.0,0.72920169]
[1673683464144,0.37793974,20911.0,20910.0,0.71920169]
[1673683466999,0.37793974,20911.0,20910.0,0.8835545]
[1673683469416,0.37793974,20911.0,20910.0,1.02649606]
[1673683469665,0.37776211,20911.0,20910.0,0.8835545]
[1673683469919,0.37776211,20911.0,20910.0,1.02649606]
[1673683470182,0.37776211,20911.0,20910.0,0.8835545]
[1673683470931,0.37776211,20911.0,20910.0,1.34767006]
[1673683471858,0.37776211,20911.0,20910.0,0.8835545]
[1673683472133,0.37776211,20911.0,20910.0,1.02649606]
[1673683472383,0.37776211,20911.0,20910.0,1.34767006]
[1673683472648,0.37776211,20911.0,20910.0,1.2047285]
[1673683473365,0.37776211,20911.0,20910.0,0.8835545]
[1673683479746,0.02776211,20911.0,20910.0,0.8835545]
[1673683480512,0.09753211,20911.0,20910.0,0.8835545]
[1673683480752,0.09753211,20911.0,20910.0,0.242]
[1673683480753,1.07191759,20911.0,20910.0,0.242]
[1673683482698,0.59370059,20911.0,20910.0,0.242]
[1673683483673,0.52393059,20911.0,20910.0,0.242]
[1673683486192,0.50586211,20911.0,20910.0,0.71920169]
[1673683486441,0.50586211,20911.0,20910.0,0.86316885]
[1673683489086,0.37776211,20911.0,20910.0,0.86316885]
[1673683489804,0.02776211,20911.0,20910.0,0.86316885]
[1673683490752,0.37776211,20911.0,20910.0,0.86316885]
[1673683491750,0.02776211,20911.0,20910.0,0.86316885]
[1673683493755,0.37776211,20911.0,20910.0,0.86316885]
[1673683493972,0.37776211,20911.0,20910.0,1.32728441]
[1673683494959,0.02776211,20911.0,20910.0,1.32728441]
[1673683495175,0.02776211,20911.0,20910.0,1.54138185]
[1673683496705,0.37776211,20911.0,20910.0,1.54138185]
[1673683497491,0.37776211,20911.0,20910.0,1.54181163]
[1673683497740,0.37776211,20911.0,20910.0,1.54181234]
[1673683497984,0.02776211,20911.0,20910.0,1.54181234]
[1673683498450,0.02776211,20911.0,20910.0,1.3277149]
[1673683498699,0.37776211,20911.0,20910.0,1.54181234]
[1673683499212,0.37776211,20911.0,20910.0,1.68288069]
[1673683499456,0.37776211,20911.0,20910.0,1.48476372]
[1673683499604,0.02776211,20911.0,20910.0,1.48476372]
[1673683500061,0.02776211,20911.0,20910.0,1.68288069]
[1673683500705,0.02776211,20911.0,20910.0,1.87312951]
[1673683501407,0.02694611,20911.0,20910.0,2.16112069]
[1673683501638,0.02694611,20911.0,20910.0,1.52711569]
[1673683501884,0.02694611,20911.0,20910.0,1.95555379]
[1673683502343,0.02694611,20911.0,20910.0,1.52711569]
[1673683502644,0.02694611,20911.0,20910.0,2.25442379]
[1673683502880,0.00594611,20911.0,20910.0,2.25242379]
[1673683503809,0.00794611,20911.0,20910.0,2.09042379]
[1673683504046,0.00594611,20911.0,20910.0,2.25242379]
[1673683504281,0.00794611,20911.0,20910.0,2.39042379]
[1673683505258,0.00794611,20911.0,20910.0,1.66198569]
[1673683505481,0.00794611,20911.0,20910.0,2.06198569]
[1673683505718,8.919e-05,20914.0,20911.0,0.1]
[1673683505953,8.919e-05,20914.0,20913.0,0.62039276]
[1673683506185,8.919e-05,20914.0,20913.0,1.04151476]
[1673683506651,8.919e-05,20914.0,20913.0,1.29151476]
[1673683506876,0.00108919,20914.0,20913.0,1.43051476]
[1673683507331,0.00108919,20914.0,20913.0,1.18732369]
[1673683508283,0.00108919,20914.0,20913.0,0.86620169]
[1673683508738,0.35108919,20914.0,20913.0,0.86620169]
[1673683509046,0.35108919,20914.0,20913.0,1.04040337]
[1673683509459,0.35108919,20914.0,20913.0,1.040541]
[1673683510403,0.35108919,20914.0,20913.0,1.04040337]
[1673683511793,0.35108919,20914.0,20913.0,1.361715]
[1673683512736,0.00108919,20914.0,20913.0,1.361715]
[1673683513025,0.00108919,20914.0,20913.0,1.040541]
[1673683513732,0.00108919,20914.0,20913.0,1.04040337]
[1673683516794,1.52141054,20914.0,20913.0,0.389]
[1673683517062,1.58692331,20914.0,20913.0,0.389]
[1673683517291,1.70085167,20914.0,20913.0,0.389]
[1673683517537,2.05007386,20914.0,20913.0,0.25]
[1673683517774,2.63142315,20914.0,20913.0,0.389]
[1673683518067,2.40671741,20914.0,20913.0,0.25]
[1673683518278,2.12224255,20914.0,20913.0,0.332]
[1673683518510,2.1218239,20914.0,20913.0,0.25]
[1673683518748,2.2218239,20914.0,20913.0,0.25]
[1673683518984,2.2508239,20914.0,20913.0,0.252]
[1673683520293,1.62717036,20914.0,20913.0,0.25]
[1673683520529,1.42756024,20914.0,20913.0,0.261]
[1673683520775,1.00107041,20914.0,20913.0,0.261]
[1673683521020,0.87297041,20914.0,20913.0,0.261]
[1673683521277,0.87297041,20914.0,20913.0,0.73820169]
[1673683522272,1.01566021,20914.0,20913.0,0.73820169]
[1673683522766,1.31566021,20914.0,20913.0,0.73820169]
[1673683523264,0.87297041,20914.0,20913.0,0.73820169]
[1673683523503,1.31566021,20914.0,20913.0,0.73820169]
[1673683524741,1.52969024,20914.0,20913.0,0.261]
[1673683525236,1.31566021,20914.0,20913.0,0.261]
[1673683525737,0.87297041,20914.0,20913.0,0.261]
[1673683527504,0.87297041,20914.0,20913.0,0.2609237]
[1673683529355,1.17297041,20914.0,20913.0,0.2609237]
[1673683529595,1.01566021,20914.0,20913.0,0.2609237]
[1673683530626,1.31566021,20914.0,20913.0,0.2609237]
[1673683530867,1.01566021,20914.0,20913.0,0.2609237]
[1673683531110,0.87297041,20914.0,20913.0,0.2609237]
[1673683531643,1.31566021,20914.0,20913.0,0.2609237]
[1673683532410,1.52969024,20914.0,20913.0,0.2609237]
[1673683532657,1.31566021,20914.0,20913.0,0.2609237]
[1673683533153,1.52969024,20914.0,20913.0,0.2609237]
[1673683533906,1.48992973,20914.0,20913.0,0.25991709]
[1673683534158,1.7753031,20914.0,20913.0,0.25728609]
[1673683534416,1.78503647,20914.0,20913.0,0.25728609]
[1673683534664,1.47100644,20914.0,20913.0,0.25728609]
[1673683534924,1.68498663,20914.0,20913.0,0.25728609]
[1673683537709,1.39961326,20914.0,20913.0,0.25728609]
[1673683537959,1.54223974,20914.0,20913.0,0.25728609]
[1673683538204,1.32825955,20914.0,20913.0,0.25728609]
[1673683538460,1.54223974,20914.0,20913.0,0.25728609]
[1673683539224,1.32825955,20914.0,20913.0,0.25728609]
[1673683542005,0.8708997,20914.0,20913.0,0.25735533]
[1673683542247,0.8708997,20914.0,20913.0,0.25728609]
[1673683543240,0.8708997,20914.0,20913.0,0.41173457]
[1673683546159,0.8708997,20914.0,20913.0,0.88893626]
[1673683550820,0.8708997,20914.0,20913.0,1.21011026]
[1673683551062,0.39766251,20914.0,20913.0,1.21011026]
[1673683551304,0.39766251,20914.0,20913.0,1.2101795]
[1673683551793,0.04766251,20914.0,20913.0,1.2101795]
[1673683552273,0.01966251,20914.0,20913.0,1.1991795]
[1673683552514,0.02166251,20914.0,20913.0,1.1991795]
[1673683552751,0.37166251,20914.0,20913.0,1.1991795]
[1673683552999,0.37366251,20914.0,20913.0,1.3381795]
[1673683553798,0.02366251,20914.0,20913.0,1.33811026]
[1673683554037,0.02366251,20914.0,20913.0,1.01693626]
[1673683554807,0.37366251,20914.0,20913.0,1.33811026]
[1673683555814,0.02366251,20914.0,20913.0,1.33811026]
[1673683558024,0.02366251,20914.0,20913.0,1.33824543]
[1673683558797,0.02366251,20914.0,20913.0,1.73250058]
[1673683558798,6.251e-05,20914.0,20913.0,1.73250058]
[1673683559048,0.35789274,20916.0,20913.0,2.44202777]
[1673683559291,0.35789274,20916.0,20915.0,0.47720169]
[1673683559535,0.35789274,20916.0,20915.0,1.27646769]
[1673683559775,0.00289274,20916.0,20915.0,1.28496769]
[1673683560021,9.274e-05,20916.0,20915.0,1.42810975]
[1673683560292,0.00864531,20918.0,20915.0,1.77810975]
[1673683560538,0.00864531,20918.0,20916.0,0.79225984]
[1673683560787,0.00864531,20918.0,20917.0,0.79830969]
[1673683561027,0.00864531,20918.0,20917.0,0.97555323]
[1673683561803,0.00864531,20918.0,20917.0,1.22555323]
[1673683562287,0.03164531,20918.0,20917.0,1.9986577]
[1673683562508,0.03164531,20918.0,20917.0,2.12261127]